Cogmind - Beta 11 X7 @@@ ROGUE MODE // 2021.08.29 @ 13:39:18 Player: AlmondRoll Result: Self-destructed Performance ------------- Evolutions (7) 3500 Regions Visited (12) 2400 Robots Destroyed (166) 830 Value Destroyed (6719) 6719 Prototype IDs (16) 320 Alien Tech Used (0) 0 Bonus (1860) 1860 TOTAL SCORE: 15629 Bonus ------- High Alert Combat Kills 1151 Follower Combat Kills 20 Entered Garrisons 200 Used RIF Installer 500 Friendly Fire -11 Cogmind --------- Core Integrity 1172/1300 Matter 179/300 Energy 93/340 System Corruption 1% Temperature Warm (159) Movement Rolling (160) Ox4 Location -3/Research Parts ------- > --- POWER (1) -------- Particle Reactor > --- PROPULSION (2) --- Armored Huge Wheel > --- UTILITY (14) ----- Fusion Compressor Advanced Power Amplifier Coolant Injector Huge Storage Unit Advanced Signal Interpreter Advanced Targeting Computer Advanced Target Analyzer Advanced Force Field Hacking Suite Hacking Suite Improved System Shield > --- WEAPON (4) ------- Nova Cannon > --- INVENTORY (25) --- Light Antimatter Reactor Light Antimatter Reactor Armored Heavy Treads Armored Huge Wheel Advanced Heat Sink Advanced Heat Sink Coolant Injector Energy Well (350) Advanced Sensor Array Improved Target Analyzer Armor Integrity Analyzer Energy Filter Nanoactuators Enhanced Gamma Bomb Array Scatter Rocket Array Scatter Rocket Array Scatter Rocket Array Improved Remote Datajack Peak State ------------ > --- POWER ------------ Particle Reactor > --- PROPULSION ------- Armored Huge Wheel > --- UTILITY ---------- Advanced Power Amplifier Advanced Heat Sink Huge Storage Unit Advanced Signal Interpreter Advanced Targeting Computer Advanced Target Analyzer Improved Utility Shielding Layered Heavy Armor Plating Advanced Force Field Hacking Suite Hacking Suite System Shield Improved System Shield > --- WEAPON ----------- Plasma Rifle Plasma Rifle Nova Cannon > --- INVENTORY -------- Light Antimatter Reactor Light Antimatter Reactor Armored Heavy Treads Armored Huge Wheel Fusion Compressor Fusion Compressor Advanced Heat Sink Coolant Injector Coolant Injector Energy Well Advanced Sensor Array Improved Target Analyzer Armor Integrity Analyzer Energy Filter Nanoactuators Enhanced Gamma Bomb Array Scatter Rocket Array Scatter Rocket Array Scatter Rocket Array Improved Remote Datajack [Rating: 111] Favorites ----------- Power Light Nuclear Core Engine Ion Engine Power Core Light Nuclear Core Reactor Heavy Antimatter Reactor Propulsion Armored Huge Wheel Treads Light Treads Leg Aluminum Leg Wheel Armored Huge Wheel Utility Targeting Computer Device Coolant Injector Storage Huge Storage Unit Processor Targeting Computer Hackware Hacking Suite Protection Layered Heavy Armor Plating Weapon Gatling Laser Energy Gun Gatling Laser Energy Cannon Advanced Beam Cannon Ballistic Gun Light Assault Rifle Ballistic Cannon Light Cannon Launcher Scatter Rocket Array Special Weapon Remote Datajack Slashing Weapon Katana Special Melee Weapon Improved Datajack Build | -11 -10 -9 -8 -8 -8 -7 -7 -7 -6 -5 -4 -3 ------- Run | Scr Mat Mat Mat Gar Mat Fac Low Low Fac Fac Fac Res Slots Evolved 14 | . . 2 2 . . 2 . . 2 2 2 2 Power . | . . . . . . . . . . . . . Propulsion . | . . . . . . . . . . . . . Utility 12 | . . 2 2 . . 2 . . 2 2 2 . Weapon 2 | . . . . . . . . . . . . 2 Parts Attached 166 | 3 6 13 25 15 9 8 3 2 16 4 42 20 Power 13 | . . 1 2 2 . 1 . . 3 . 2 2 Engine 1 | . . 1 . . . . . . . . . . Core 7 | . . . 2 2 . 1 . . 2 . . . Reactor 5 | . . . . . . . . . 1 . 2 2 Propulsion 22 | 2 1 4 6 6 1 . . . . . 1 1 Treads 8 | . . 2 2 4 . . . . . . . . Leg . | . . . . . . . . . . . . . Wheel 14 | 2 1 2 4 2 1 . . . . . 1 1 Hover . | . . . . . . . . . . . . . Flight . | . . . . . . . . . . . . . Utility 68 | 1 2 3 6 1 4 3 3 . 11 2 20 12 Device 39 | 1 1 . 4 . 3 . 2 . 5 . 15 8 Storage 1 | . 1 . . . . . . . . . . . Processor 13 | . . 3 2 1 . 1 . . 1 1 2 2 Hackware 7 | . . . . . 1 . . . 3 1 1 1 Protection 8 | . . . . . . 2 1 . 2 . 2 1 Artifact . | . . . . . . . . . . . . . Weapon 63 | . 3 5 11 6 4 4 . 2 2 2 19 5 Energy Gun 35 | . 1 2 6 3 3 3 . 1 2 1 10 3 Energy Cannon 7 | . . . 2 1 . . . . . 1 2 1 Ballistic Gun 6 | . . 3 3 . . . . . . . . . Ballistic Cannon 4 | . 2 . . 1 . . . . . . 1 . Launcher 7 | . . . . . . 1 . 1 . . 4 1 Special Weapon 2 | . . . . . . . . . . . 2 . Impact Weapon . | . . . . . . . . . . . . . Slashing Weapon 1 | . . . . 1 . . . . . . . . Piercing Weapon . | . . . . . . . . . . . . . Special Melee Weapon 1 | . . . . . 1 . . . . . . . Unidentified Prototypes 14 | . . . 2 . 1 . . . 3 . 8 . Parts Lost 51 | . 2 6 11 3 . 3 1 . 2 . 13 10 Power 5 | . . 1 1 2 . . . . . . . 1 Propulsion 9 | . 1 1 4 1 . . . . . . 1 1 Utility 20 | . 1 . 3 . . 1 1 . 2 . 8 4 Weapon 17 | . . 4 3 . . 2 . . . . 4 4 Highest Loss Streak 8 | . 1 3 8 1 . 1 1 . 2 . 8 7 Average Slot Usage (%) 90 | . 93 98 87 99 91 91 91 92 87 84 83 89 Engine 1 | . 14 9 2 . . . . . . . . . Core 3 | . . . 4 9 9 7 7 7 4 . . . Reactor 1 | . . . . . . . . . 1 5 5 3 Treads 1 | . . 6 2 9 . . . . . . . . Wheel 8 | . 27 15 10 7 10 7 7 7 6 5 5 4 Device 17 | . 8 . 7 18 15 15 15 15 25 23 22 14 Storage 7 | . 14 11 9 9 9 7 7 7 6 5 5 4 Processor 16 | . . 33 34 26 27 22 22 15 5 4 9 14 Hackware 8 | . . . . . 2 . . . 15 20 20 18 Protection 5 | . . . . . . 15 15 23 7 5 4 8 Energy Gun 11 | . . 6 7 15 17 15 15 14 12 10 8 17 Ballistic Gun 2 | . 14 13 6 . . . . . . . . . Ballistic Cannon 1 | . 13 2 . . . . . . . . . . Naked Turns . | . . . . . . . . . . . . . Heaviest Build 147 | 14 90 90 96 96 95 109 116 116 126 126 146 147 Greatest Support 40 | 26 32 40 40 40 34 34 34 34 34 34 34 28 Greatest Overweight (x) 9 | . 5 5 9 3 3 3 3 3 3 3 4 5 Average Overweight (x) 2 | . 1 2 3 2 2 3 3 3 2 3 3 4 Largest Inventory Capacity 25 | 8 25 25 25 25 25 25 25 25 25 25 25 25 Average Capacity 24 | 8 19 25 25 25 25 25 25 25 25 25 25 25 Most Carried 25 | 8 16 25 25 25 25 25 25 25 25 25 25 23 Average Carried 22 | 5 11 16 22 24 24 24 25 25 24 24 24 21 Final Capacity 25 | 8 25 25 25 25 25 25 25 25 25 25 25 25 Final Carried 25 | 8 16 25 23 25 25 25 25 25 25 25 23 20 Class Distribution -------------------- 34% | Hacker-Mutant 20% | Bothacker-Mutant 18% | Scavenger-Mutant 16% | Mutant 4% | Hacker-Tank 4% | Hacker-Gunner Dominant Class ---------------- Mutant | -10/Materials Mutant | -9/Materials Mutant | -8/Materials Scavenger-Mutant | -8/Garrison Bothacker-Mutant | -8/Materials Bothacker-Mutant | -7/Factory Bothacker-Mutant | -7/Lower Caves Bothacker-Mutant | -7/Lower Caves Hacker-Mutant | -6/Factory Hacker-Mutant | -5/Factory Hacker-Mutant | -4/Factory Hacker-Tank | -3/Research Resources | -11 -10 -9 -8 -8 -8 -7 -7 -7 -6 -5 -4 -3 ----------- Run | Scr Mat Mat Mat Gar Mat Fac Low Low Fac Fac Fac Res Matter Collected 2683 | 231 247 214 380 141 61 122 30 38 174 40 607 398 Remotely 92 | 10 82 . . . . . . . . . . . Salvage Created 6409 | 66 314 711 718 565 170 170 175 159 655 68 1351 1287 Parts 280 | 3 20 31 34 31 16 13 8 7 31 3 45 38 Haulers Intercepted 8 | . 2 1 1 . 1 . . . . . 2 1 Recyclers Shooed 5 | . . 1 1 . . . . . 2 . . 1 Parts Field Recycled . | . . . . . . . . . . . . . Retrieved Matter . | . . . . . . . . . . . . . Parts Self-Destructed 13 | . . . . . . . 6 7 . . . . Prevented . | . . . . . . . . . . . . . Kills | -11 -10 -9 -8 -8 -8 -7 -7 -7 -6 -5 -4 -3 ------- Run | Scr Mat Mat Mat Gar Mat Fac Low Low Fac Fac Fac Res Combat Hostiles Destroyed 130 | . 7 13 13 16 3 5 4 6 10 1 31 21 Melee 2 | . . . . 2 . . . . . . . . Guns 93 | . 2 12 12 14 3 3 4 4 10 . 17 12 Cannons 8 | . 5 1 . . . . . . . . . 2 AOE 20 | . . . . . . 2 . 2 . . 12 4 Classes Destroyed 19 | 1 5 2 4 1 . . 1 . 1 . 4 . Worker 8 | . . . 1 . 3 . . . 1 . . 3 Builder 3 | . . . 1 . . . . . . . 1 1 Tunneler 1 | . . . 1 . . . . . . . . . Hauler 8 | . 2 1 1 . 1 . . . . . 2 1 Recycler 7 | 1 1 2 . . . 1 . . 2 . . . Mechanic 1 | . . . . . . . . . . . 1 . Operator 3 | . 1 . . . . 1 . . 1 . . . Watcher 5 | . 2 1 . . 1 . . . . . . 1 Swarmer 43 | . 3 4 . 10 3 4 . 3 3 . 8 5 Grunt 36 | . 4 6 11 . . . 3 3 2 . 3 4 Brawler 2 | . . . . 1 . . . . . . . 1 Duelist 4 | . . 1 . 1 . . . . . . 1 1 Protector 2 | . . . . . . . . . . . 2 . Sentry 10 | . . 2 . 3 . . . . 1 1 1 2 Specialist 1 | . . . . . . . . . . . 1 . Hunter 15 | . . . 2 1 . 1 . . . . 7 4 Programmer 15 | . . . . . . . . . 4 . 7 4 Heavy 1 | . . . . . . . . . . . 1 . Thief 1 | . . . . . . . 1 . . . . . Best Kill Streak 12 | 1 3 5 6 6 5 4 3 3 4 1 10 12 Combat Bots Only 8 | . 3 4 4 6 3 3 3 3 3 1 8 8 Max Kills in Single Turn 5 | 1 1 1 2 1 3 2 2 1 1 1 5 3 Gunslinging 1 | . . . . . 1 . . . . . . 1 Exploded 4 | . . . . . . 2 . 1 . . 4 3 Melee 1 | . . . . 1 . . . . . . . . Uniques/NPCs Destroyed . | . . . . . . . . . . . . . Combat | -11 -10 -9 -8 -8 -8 -7 -7 -7 -6 -5 -4 -3 -------- Run | Scr Mat Mat Mat Gar Mat Fac Low Low Fac Fac Fac Res Damage Taken 9019 | . 369 730 1206 347 44 150 63 292 372 19 3508 1919 Core 1486 | . 130 221 340 81 . 18 . 29 33 . 506 128 Absorbed by Shields 887 | . . . . . . . . . 137 7 499 244 Core Remaining (%) 70 | 100 48 44 . . 23 . . 93 96 100 56 . Volleys Fired 376 | 1 45 47 59 22 7 8 9 10 33 15 76 44 Largest 4 | 2 2 2 2 2 2 2 2 2 2 2 2 4 Hottest 338 | 70 70 73 160 160 160 160 160 160 160 160 160 338 Shots Fired 747 | 2 89 93 109 37 14 13 18 18 66 18 124 146 Gun 649 | 2 51 83 109 35 14 12 18 16 66 6 108 129 Cannon 80 | . 38 10 . 2 . . . . . 12 4 14 Launcher 12 | . . . . . . 1 . 2 . . 6 3 Special 6 | . . . . . . . . . . . 6 . Kinetic 214 | 1 83 65 64 1 . . . . . . . . Thermal 515 | 1 6 28 45 36 14 12 18 16 66 18 112 143 Explosive 12 | . . . . . . 1 . 2 . . 6 3 Electromagnetic . | . . . . . . . . . . . . . Robot Hit Streak 50 | 2 8 21 25 50 9 3 5 9 14 5 16 9 Robot Miss Streak 7 | . 3 1 3 2 2 3 6 3 7 2 3 7 Penetration Max . | . . . . . . . . . . . . . Secondary Targets 6 | . . . 2 1 1 . . . . . 1 1 Max Gunslinging Chain 1 | . . . 1 1 1 . . . . . 1 1 Shots Hit Robots 596 | 2 52 75 100 45 15 12 15 18 59 6 106 91 Core Hits 468 | 2 19 28 42 28 12 16 12 13 52 5 152 87 Critical Kills . | . . . . . . . . . . . . . Critical Parts Destroyed . | . . . . . . . . . . . . . Critical Strikes 26 | . 2 6 1 . . . . . . . 3 14 Burn 24 | . . 6 1 . . . . . . . 3 14 Blast 2 | . 2 . . . . . . . . . . . Melee Attacks 16 | . . . . 14 2 . . . . . . . Impact . | . . . . . . . . . . . . . Slashing 14 | . . . . 14 . . . . . . . . Piercing . | . . . . . . . . . . . . . Sneak Attacks 1 | . . . . . 1 . . . . . . . Combat Hostiles . | . . . . . . . . . . . . . Follow-up Attacks . | . . . . . . . . . . . . . Damage Inflicted 16882 | 18 734 901 1765 1453 342 365 318 434 1304 131 5477 3640 Guns 10451 | 18 210 776 1765 709 342 201 318 238 1304 131 2604 1835 Cannons 1016 | . 524 125 . . . . . . . . . 367 Explosions 4671 | . . . . . . 164 . 196 . . 2873 1438 Melee 744 | . . . . 744 . . . . . . . . Ramming . | . . . . . . . . . . . . . Kinetic 2112 | 6 709 592 805 . . . . . . . . . Thermal 9355 | 12 25 309 960 709 342 201 318 238 1304 131 2604 2202 Explosive 4671 | . . . . . . 164 . 196 . . 2873 1438 Electromagnetic . | . . . . . . . . . . . . . Impact . | . . . . . . . . . . . . . Slashing 744 | . . . . 744 . . . . . . . . Piercing . | . . . . . . . . . . . . . Highest Corruption 6 | . . . . . . 1 1 1 5 . 6 1 Average Corruption 2 | . . . . . . 1 1 1 2 . 3 1 Corruption Purged . | . . . . . . . . . . . . . Effects 22 | . . . . . . 1 1 . 7 . 12 1 Message Errors 7 | . . . . . . . . . 3 . 3 1 Matter Fused 3 | . . . . . . . . . 2 . 1 . Heat Flow Errors 8 | . . . . . . . . . 2 . 6 . Energy Discharges 2 | . . . . . . 1 . . . . 1 . Data Loss (minor) 2 | . . . . . . . 1 . . . 1 . Overload Shots . | . . . . . . . . . . . . . Overflow Damage 38 | . 2 . . . . . . 4 . . 10 22 Projectiles 2 | . 2 . . . . . . . . . . . Explosions 36 | . . . . . . . . 4 . . 10 22 Melee . | . . . . . . . . . . . . . Knockbacks 7 | . 7 . . . . . . . . . . . Impact . | . . . . . . . . . . . . . Kinetic 6 | . 6 . . . . . . . . . . . Secondary 1 | . 1 . . . . . . . . . . . Self-Inflicted Damage 61 | . . . . . . . . 31 . . . 30 Shots 3 | . . . . . . . . 1 . . . 2 Rammed . | . . . . . . . . . . . . . Targets Rammed . | . . . . . . . . . . . . . Kicked . | . . . . . . . . . . . . . Crushed . | . . . . . . . . . . . . . Highest Temperature 351 | 30 64 97 199 15 174 171 233 214 186 24 351 288 Average Temperature 75 | 18 27 25 86 2 65 67 114 81 56 12 94 128 Received Heat Transfer 1404 | . 132 285 603 18 27 . 27 36 43 . 152 81 Effects 5 | . . . . . . . . . . . 5 . Interference 5 | . . . . . . . . . . . 5 . Siege Activations . | . . . . . . . . . . . . . Robots Corrupted . | . . . . . . . . . . . . . Combat Hostiles . | . . . . . . . . . . . . . Parts Fried . | . . . . . . . . . . . . . Impact Corruptions . | . . . . . . . . . . . . . Robots Melted 8 | . . . 1 . . . . . . 1 2 4 Combat Hostiles 7 | . . . 1 . . . . . . 1 2 3 Parts Melted 68 | . . 3 2 4 3 . . . 9 1 11 35 Heat Transferred 22256 | 37 74 1332 2130 1500 750 450 700 550 2825 300 5875 5733 Parts Sabotaged . | . . . . . . . . . . . . . Parts Stolen 1 | . . . . . . . 1 . . . . . Parts Stripped . | . . . . . . . . . . . . . Power Chain Reactions . | . . . . . . . . . . . . . Missiles Intercepted . | . . . . . . . . . . . . . Alert | -11 -10 -9 -8 -8 -8 -7 -7 -7 -6 -5 -4 -3 ------- Run | Scr Mat Mat Mat Gar Mat Fac Low Low Fac Fac Fac Res Peak Influence 986 | 5 239 382 186 493 346 187 . . 513 780 986 925 Initial 517 | . 3 20 24 58 239 23 . . 127 251 382 517 Average 249 | 4 135 139 75 302 278 91 . . 105 540 344 610 Maximum Alert Level 3 | . 1 1 . 2 1 . . . 2 3 3 3 Low Security (%) 53 | 100 70 69 100 16 8 100 . . 88 . 45 . Level 1 23 | . 29 30 . 59 91 . . . 6 33 22 . Level 2 16 | . . . . 23 . . . . 5 47 15 79 Level 3 5 | . . . . . . . . . . 19 17 20 Level 4 . | . . . . . . . . . . . . . Level 5 . | . . . . . . . . . . . . . High Security . | . . . . . . . . . . . . . Max Security . | . . . . . . . . . . . . . Squads Dispatched 27 | . 3 2 3 . 1 1 . . 7 1 5 4 Investigation 6 | . 2 2 1 . . 1 . . . . . . Extermination 9 | . . . . . . . . . 4 . 3 2 Reinforcement 7 | . 1 . . . . . . . 3 . 2 1 Assault 2 | . . . . . . . . . . 1 . 1 Garrison 3 | . . . 2 . 1 . . . . . . . Intercept . | . . . . . . . . . . . . . Construction Impeded . | . . . . . . . . . . . . . Haulers Reinforced 2 | . . . . . . . . . . . 1 1 Active Scanning Responses . | . . . . . . . . . . . . . Cargo Convoy Interrupts 2 | . . . . . . . . . 1 . 1 . Stealth | -11 -10 -9 -8 -8 -8 -7 -7 -7 -6 -5 -4 -3 --------- Run | Scr Mat Mat Mat Gar Mat Fac Low Low Fac Fac Fac Res Distress Signals 9 | . . 4 2 . 1 . . . 2 . . . Communications Jammed 15 | . . . . . . . . . . . 15 . Distress Signals 4 | . . . . . . . . . . . 4 . Times Spotted 176 | . 14 27 14 15 7 8 4 6 17 1 38 25 Peak Tracking Total 13 | . 4 9 4 6 2 4 3 3 3 1 13 5 Tactical Retreats 7 | . . 2 . . . 1 . . . . 3 1 Traps | -11 -10 -9 -8 -8 -8 -7 -7 -7 -6 -5 -4 -3 ------- Run | Scr Mat Mat Mat Gar Mat Fac Low Low Fac Fac Fac Res Traps Triggered 6 | . . . . 3 . 1 . . 1 . 1 . Indirectly . | . . . . . . . . . . . . . Trap Hack Attempts . | . . . . . . . . . . . . . Triggered . | . . . . . . . . . . . . . Disarmed . | . . . . . . . . . . . . . Reprogrammed . | . . . . . . . . . . . . . Reused . | . . . . . . . . . . . . . Traps Extracted . | . . . . . . . . . . . . . Installed . | . . . . . . . . . . . . . Triggered 1 | . . . . . . . . . 1 . . . Machines | -11 -10 -9 -8 -8 -8 -7 -7 -7 -6 -5 -4 -3 ---------- Run | Scr Mat Mat Mat Gar Mat Fac Low Low Fac Fac Fac Res Machines Disabled 7 | . 1 1 . 2 . . . . . 2 1 . Max in Single Turn 1 | . 1 1 . 1 . . . . . 1 1 . Garrison Access 2 | . . . . . . . . . 2 . . . Garrison Relay 2 | . . . . 2 . . . . . . . . Machines Sabotaged . | . . . . . . . . . . . . . Garrisons Compromised 1 | . . . . . . . . . 1 . . . Overloaded Fab Kills . | . . . . . . . . . . . . . Fab Network Shutdowns 1 | . . . . . . . . . . 1 . . Hacking | -11 -10 -9 -8 -8 -8 -7 -7 -7 -6 -5 -4 -3 --------- Run | Scr Mat Mat Mat Gar Mat Fac Low Low Fac Fac Fac Res Machines Accessed 38 | . 4 3 3 . 2 5 1 . 12 2 6 . Terminals 20 | . 4 3 2 . 1 2 . . 5 . 3 . Fabricators 6 | . . . . . . 1 . . 3 1 1 . Repair Stations 1 | . . . . . . . . . 1 . . . Recycling Units 5 | . . . . . 1 1 . . 1 1 1 . Scanalyzers 2 | . . . . . . 1 . . . . 1 . Garrison Access 3 | . . . 1 . . . . . 2 . . . Total Hacks 127 | . 17 12 9 . 6 15 1 . 34 4 29 . Successful 77 | . 6 6 5 . 3 8 1 . 23 3 22 . Failed 49 | . 10 6 4 . 3 7 . . 11 1 7 . Catastrophic 6 | . 2 3 . . . . . . 1 . . . Database Lockouts 1 | . 1 . . . . . . . . . . . Manual 69 | . 14 7 8 . 5 6 . . 17 1 11 . Terminals 84 | . 17 12 8 . 5 6 . . 18 . 18 . Fabricators 16 | . . . . . . 2 . . 8 3 3 . Repair Stations 2 | . . . . . . . . . 2 . . . Recycling Units 10 | . . . . . 1 1 . . 4 1 3 . Scanalyzers 11 | . . . . . . 6 . . . . 5 . Garrison Access 3 | . . . 1 . . . . . 2 . . . Terminal Hacks 28 | . 3 3 2 . 2 . 1 . 9 . 8 . Part Schematic 2 | . . . . . . . . . 2 . . . Robot Analysis 6 | . 2 1 2 . . . . . 1 . . . Prototype ID Bank 1 | . 1 . . . . . . . . . . . Open Door 1 | . . . . . . . 1 . . . . . Level Access Points 1 | . . . . . . . . . . . 1 . Branch Access Points 2 | . . . . . . . . . 1 . 1 . Terminal Index 2 | . . . . . . . . . 1 . 1 . Fabricator Index 2 | . . . . . . . . . 1 . 1 . Repair Station Index 1 | . . . . . . . . . 1 . . . Unreport Threat 5 | . . 2 . . 2 . . . . . 1 . Locate Traps 2 | . . . . . . . . . 1 . 1 . Recall Extermination 1 | . . . . . . . . . . . 1 . Registered Components 2 | . . . . . . . . . 1 . 1 . Fabricator Hacks 12 | . . . . . . 2 . . 5 2 3 . Load Schematic 6 | . . . . . . 1 . . 3 1 1 . Build 6 | . . . . . . 1 . . 2 1 2 . Repair Station Hacks . | . . . . . . . . . . . . . Recycling Unit Hacks 6 | . . . . . 1 1 . . 1 . 3 . Retrieve Matter 1 | . . . . . . . . . . . 1 . Retrieve Components 5 | . . . . . 1 1 . . 1 . 2 . Scanalyzer 7 | . . . . . . 3 . . . . 4 . Insert Component 3 | . . . . . . 1 . . . . 2 . Analyze 4 | . . . . . . 2 . . . . 2 . Garrison Access Hacks 3 | . . . 1 . . . . . 2 . . . Unlock Access 1 | . . . 1 . . . . . . . . . Seal Access 2 | . . . . . . . . . 2 . . . Unauthorized Hacks 21 | . 3 3 2 . . 2 . . 6 1 4 . Terminals 16 | . 3 3 2 . . 2 . . 2 . 4 . Track 1 | . . . . . . . . . . . 1 . Assimilate 1 | . . 1 . . . . . . . . . . Botnet 12 | . 2 2 2 . . 2 . . 2 . 2 . Operators 2 | . 1 . . . . . . . . . 1 . Fabricators 2 | . . . . . . . . . 1 1 . . Siphon 2 | . . . . . . . . . 1 1 . . Repair Stations . | . . . . . . . . . . . . . Recycling Units 3 | . . . . . . . . . 3 . . . Monitor 1 | . . . . . . . . . 1 . . . Reject 1 | . . . . . . . . . 1 . . . Recyclers 1 | . . . . . . . . . 1 . . . Scanalyzers . | . . . . . . . . . . . . . Garrison Access . | . . . . . . . . . . . . . Data Cores Recovered 1 | . . . . . . . . . 1 . . . Used . | . . . . . . . . . . . . . Hacking Detections 33 | . 4 3 2 . 2 4 . . 10 2 6 . Full Trace Events 8 | . 4 2 1 . . 1 . . . . . . Feedback Events . | . . . . . . . . . . . . . Feedback Blocked . | . . . . . . . . . . . . . Robot Schematics Acquired . | . . . . . . . . . . . . . Robots Built . | . . . . . . . . . . . . . Matter . | . . . . . . . . . . . . . Time . | . . . . . . . . . . . . . Total Robot Build Rating . | . . . . . . . . . . . . . Part Schematics Acquired 5 | . . . . . . 1 . . 2 . 2 . Parts Built 8 | . . . . . . 1 . . 2 1 4 . Matter 1056 | . . . . . . 146 . . 371 159 380 . Time 400 | . . . . . . 73 . . 212 53 62 . Total Part Build Rating 41 | . . . . . . 3 . . 12 6 20 . Parts Repaired . | . . . . . . . . . . . . . Time . | . . . . . . . . . . . . . Parts Recycled . | . . . . . . . . . . . . . Recycled Matter . | . . . . . . . . . . . . . Retrieved Matter . | . . . . . . . . . . . . . Retrieved Components 14 | . . . . . 2 5 . . 7 . . . Parts Scanalyzed 3 | . . . . . . 1 . . . . 2 . Part Schematics Acquired 3 | . . . . . . 1 . . . . 2 . Parts Damaged . | . . . . . . . . . . . . . Bothacking | -11 -10 -9 -8 -8 -8 -7 -7 -7 -6 -5 -4 -3 ------------ Run | Scr Mat Mat Mat Gar Mat Fac Low Low Fac Fac Fac Res Used RIF Installer 1 | . . . . 1 . . . . . . . . Robots Hacked 2 | . . . . . 1 . . . . . 1 . Non-combat 1 | . . . . . . . . . . . 1 . Combat 1 | . . . . . 1 . . . . . . . Robot Hacks Applied 5 | . . . . . 1 . . . . . 4 . no_distress 1 | . . . . . . . . . . . 1 . purge_threat 2 | . . . . . . . . . . . 2 . block_reporting 1 | . . . . . . . . . . . 1 . formatsys_high 1 | . . . . . 1 . . . . . . . Relay Couplers Released 9 | . . . . 9 . . . . . . . . Machine Destruction 9 | . . . . 9 . . . . . . . . Attached 2 | . . . . . 1 . . . . . 1 . Robots Rewired . | . . . . . . . . . . . . . Allies Hacked . | . . . . . . . . . . . . . Hacks Repelled . | . . . . . . . . . . . . . Allies | -11 -10 -9 -8 -8 -8 -7 -7 -7 -6 -5 -4 -3 -------- Run | Scr Mat Mat Mat Gar Mat Fac Low Low Fac Fac Fac Res Total Allies 2 | . . 1 . . 1 . . . . . . . Largest Group 1 | . . 1 1 . 1 1 . . . . . . Highest-Rated Group 15 | . . 10 10 . 15 15 . . . . . . Highest-Rated Ally 15 | . . 10 10 . 15 15 . . . . . . Total Orders . | . . . . . . . . . . . . . Ally Attacks 8 | . . . . . 2 6 . . . . . . Total Damage 119 | . . . . . 33 86 . . . . . . Kills 1 | . . . . . . 1 . . . . . . Allies Corrupted . | . . . . . . . . . . . . . Allies Melted . | . . . . . . . . . . . . . Intel | -11 -10 -9 -8 -8 -8 -7 -7 -7 -6 -5 -4 -3 ------- Run | Scr Mat Mat Mat Gar Mat Fac Low Low Fac Fac Fac Res Robot Analysis Total 6 | . 2 1 2 . . . . . 1 . . . Derelict Logs Recovered 1 | . . . . . . . 1 . . . . . Drone Launches . | . . . . . . . . . . . . . Drone Recoveries . | . . . . . . . . . . . . . Exploration | -11 -10 -9 -8 -8 -8 -7 -7 -7 -6 -5 -4 -3 ------------- Run | Scr Mat Mat Mat Gar Mat Fac Low Low Fac Fac Fac Res Turns Passed 7390 | 19 486 522 514 953 392 469 342 79 1551 305 1067 691 Spaces Moved 3581 | 9 269 234 181 376 243 254 212 31 850 146 471 305 Core . | . . . . . . . . . . . . . Treads 150 | . . 20 6 124 . . . . . . . . Legs . | . . . . . . . . . . . . . Wheels 3431 | 9 269 214 175 252 243 254 212 31 850 146 471 305 Hover . | . . . . . . . . . . . . . Flight . | . . . . . . . . . . . . . Fastest Speed 90 | 90 90 130 130 135 130 145 145 145 130 145 145 160 Average Speed 152 | 90 123 150 157 211 132 145 145 145 143 145 151 160 Slowest Speed 360 | 90 175 360 360 360 145 145 145 145 145 145 160 175 Overloaded Moves . | . . . . . . . . . . . . . Propulsion Burnouts . | . . . . . . . . . . . . . Robots Hopped . | . . . . . . . . . . . . . Cave-ins Triggered . | . . . . . . . . . . . . . Exploration Rate (%) 20 | 2 58 28 14 35 25 9 43 8 23 6 8 7 Regions Visited 12 Branch Regions 2 Pre-discovered Areas . | . . . . . . . . . . . . . Known Exits Taken 4 | . . . 1 . . . 1 . . 1 1 . Unknown Exits Taken 7 | 1 1 1 . . 1 1 . 1 1 . . . Scrap Searched 1 | . . . . . . . 1 . . . . . Spaces Dug 2 | . . . . . . . . . . . 2 . Terrain Destroyed 297 | . . . . . . 13 . 29 . 21 136 98 Melee . | . . . . . . . . . . . . . Projectile 11 | . . . . . . . . . . 1 5 5 AOE 286 | . . . . . . 13 . 29 . 20 131 93 Terrain Rammed . | . . . . . . . . . . . . . Walls Destroyed . | . . . . . . . . . . . . . Machines Disabled . | . . . . . . . . . . . . . Actions | -11 -10 -9 -8 -8 -8 -7 -7 -7 -6 -5 -4 -3 --------- Run | Scr Mat Mat Mat Gar Mat Fac Low Low Fac Fac Fac Res Total 4761 | 18 343 318 299 469 303 339 223 42 1112 220 675 400 Wait 374 | . 7 3 4 . 6 63 . . 170 53 51 17 Move 3570 | 8 268 233 181 375 242 253 211 30 849 145 470 305 Hop . | . . . . . . . . . . . . . Pick Up 133 | 4 12 19 16 16 15 5 . . 18 2 16 10 Fast Attach 44 | 1 3 1 8 . 3 1 2 . 10 . 13 2 Attach 57 | 2 1 8 10 3 1 4 . . 3 2 12 11 Detach 4 | . . . 1 . . . . . . . 3 . Swap 65 | . 2 4 7 12 5 3 1 2 3 2 17 7 Drop 106 | 2 5 3 13 11 22 2 . . 26 1 17 4 Fire 376 | 1 45 47 59 22 7 8 9 10 33 15 76 44 Melee 16 | . . . . 14 2 . . . . . . . Ram . | . . . . . . . . . . . . . Kick . | . . . . . . . . . . . . . Crush . | . . . . . . . . . . . . . Escape Stasis 16 | . . . . 16 . . . . . . . . Rewire . | . . . . . . . . . . . . . Trap . | . . . . . . . . . . . . . Miscellaneous . | . . . . . . . . . . . . . Route ------- -11/Scrapyard -10/Materials -9/Materials -8/Materials -8/Garrison -8/Materials -7/Factory -7/Lower Caves -7/Lower Caves -6/Factory (discovered 3 exits: *Fac / Low x2) -5/Factory -4/Factory (discovered 8 exits: *Res x4 / Upp x2 / Ext x2) -3/Research History --------- Turn | Location | Event 7 | -11/Scrapyard | Discovered new exit (range 3) 20 | -11/Scrapyard | Entered Materials 272 | -10/Materials | Core integrity fell below 50% 303 | -10/Materials | Build established: Mutant 407 | -10/Materials | Central database locked down 494 | -10/Materials | Discovered new exit (range 3) 506 | -10/Materials | Entered another Materials area 506 | -9/Materials | Evolved 2 slots: Utility x2 683 | -9/Materials | Lost 3 parts (1n2w) 818 | -9/Materials | Core integrity fell below 50% 988 | -9/Materials | Discovered new exit (range 5) 1028 | -9/Materials | Entered another Materials area 1028 | -8/Materials | Accompanied by 1 ally 1028 | -8/Materials | Evolved 2 slots: Utility x2 1109 | -8/Materials | Build established: Scavenger-Mutant 1337 | -8/Materials | Garrison activated, responded to threat 1427 | -8/Materials | Build established: Mutant 1440 | -8/Materials | Core integrity fell below 50% 1452 | -8/Materials | Garrison activated, responded to threat 1493 | -8/Materials | Lost 8 parts (2n3u3w) 1542 | -8/Materials | Identified exit to Garrison 1542 | -8/Materials | Entered Garrison 1549 | -8/Garrison | Installed Relay Interface Framework 1776 | -8/Garrison | Triggered checkpoint 1781 | -8/Garrison | Garrison Relay disabled 1818 | -8/Garrison | Build established: Scavenger-Mutant 1900 | -8/Garrison | Triggered checkpoint 2110 | -8/Garrison | Triggered checkpoint 2207 | -8/Garrison | Discovered new exit (range 15) 2309 | -8/Garrison | Garrison Relay disabled 2495 | -8/Garrison | Entered Materials 2825 | -8/Materials | Discovered new exit (range 3) 2856 | -8/Materials | Garrison activated, responded to threat 2887 | -8/Materials | Entered Factory 2887 | -7/Factory | Accompanied by 1 ally 2887 | -7/Factory | Evolved 2 slots: Utility x2 2942 | -7/Factory | Build established: Bothacker-Mutant 3240 | -7/Factory | Discovered new exit (range 8) 3335 | -7/Factory | Fabricated Hacking Suite (x1) 3356 | -7/Factory | Entered Lower Caves 3372 | -7/Lower Caves | Coolant Injector stolen by Master Thief 3541 | -7/Lower Caves | Encountered a Warlord checkpoint 3563 | -7/Lower Caves | Identified exit to Lower Caves 3698 | -7/Lower Caves | Entered another Lower Caves area 3756 | -7/Lower Caves | Discovered new exit (range 15) 3775 | -7/Lower Caves | Encountered a Warlord checkpoint 3777 | -7/Lower Caves | Entered Factory 3777 | -6/Factory | Evolved 2 slots: Utility x2 4386 | -6/Factory | Fabricated Lyr. Heavy Armor Plating (x1) 4449 | -6/Factory | Build established: Hacker-Mutant 4636 | -6/Factory | Fabricated Lyr. Heavy Armor Plating (x1) 5052 | -6/Factory | Discovered new exit (range 15) 5231 | -6/Factory | Identified exit to Lower Caves 5245 | -6/Factory | Cargo convoy interrupted 5328 | -6/Factory | Entered another Factory area 5328 | -5/Factory | Evolved 2 slots: Utility x2 5430 | -5/Factory | Local fabrication network quarantined 5476 | -5/Factory | Fabricated Lyr. Heavy Armor Plating (x1) 5612 | -5/Factory | Discovered new exit (range 11) 5628 | -5/Factory | First assault squad dispatched 5632 | -5/Factory | Identified exit to Factory 5633 | -5/Factory | Entered another Factory area 5633 | -4/Factory | Evolved 2 slots: Utility x2 5899 | -4/Factory | Identified exit to Upper Caves 5899 | -4/Factory | Identified exit to Extension 5899 | -4/Factory | Identified exit to Research 6298 | -4/Factory | Fabricated Plasma Rifle (x2) 6337 | -4/Factory | Fabricated Plasma Rifle (x2) 6419 | -4/Factory | Found Prototype Launcher 6419 | -4/Factory | Identified Scatter Rocket Array 6424 | -4/Factory | Found Scatter Rocket Array 6445 | -4/Factory | Found Scatter Rocket Array 6477 | -4/Factory | Found Prototype Processor 6477 | -4/Factory | Identified Exp. Melee Analysis Suite 6513 | -4/Factory | Cargo convoy interrupted 6540 | -4/Factory | Destroyed 8 combat bots 6586 | -4/Factory | Lost 8 parts (1n6u1w) 6594 | -4/Factory | Found Prototype Launcher 6594 | -4/Factory | Identified Enh. Gamma Bomb Array 6700 | -4/Factory | Entered Research 6700 | -3/Research | Evolved 2 slots: Weapon x2 6991 | -3/Research | Build established: Hacker-Tank 7225 | -3/Research | First assault squad dispatched 7316 | -3/Research | Destroyed 8 combat bots 7391 | -3/Research | Self-destructed Last Messages --------------- 07377_ Penetrated by Slug. 07377_ Fusion Compressor destroyed. 07378_ H-77 Assassin heat damages core (-16). 07379_ H-77 Assassin heat damages Myomer Leg. 07380_ Critical hit (Destroy). 07380_ Plasma Rifle destroyed. 07380_ Penetrated by Slug. 07380_ Slug penetrates Wall. 07381_ H-77 Assassin heat short circuits Coil Gun. 07382_ H-77 Assassin critical meltdown. 07382_ Imp. Targeting Computer melted. 07382_ Lgt. Antimatter Reactor melted. 07382_ Plasma Rifle destroyed. 07385_ Penetrated by Slug. 07385_ Slug penetrates Earth. 07385_ Slug penetrates Wall. 07388_ U-05 Engineer builds a Wall. 07389_ Penetrated by Slug. 07389_ System Shield destroyed. 07389_ H-77 Assassin destroyed. Map ----- +----------------------------------------------------+ | ????????????????????# #??????# ########???????? | | ????????????????????# ########+######?????????? | | ????????????????????# ## #?????????? | | ????????????????????# ] ## #?????????? | | ????????????????????# ## #?????????? | | ????????????????????? ## #?????????? | | ?????????????????????###### #?????????? | | ??????????????????????????# #?????????? | | ??????????????????????????# #????""???? | | ??????????????????????????# #??? ""???? | | ??????????????????????????# ### """??? | | ??????????????????????????# # ? | | ??????????????????????????# ? | | ??????????????????????????# % # | | ?????????????##############;#####+### % !] | | ???????????? u % % %]= | | ???????????? !!# # %] = | | ???????????? =%[ # ]]# | | ???????????? u[%= # # ? | | ??????????????????#######!!#########? #? | | ????????????????????????#%=[??????????###### #?? | | ????????????????????????#[%##????????????????? ?? | | ????????????????????????#[*##????#???????????????? | | ???????????????????????## ##?? #???????????????? | | ???????????????????????# # #???????????????? | | ???????????????????????# @ + #???????????????? | | ???????????????????????# ! # #???????????????? | | ???????????????????????# #?? #???????????????? | | ???????????????????????##;###????#???????????????? | | ???????????????????????? #??????????????????????? | | ???????????????????????? #??????????????????????? | | ????????????????????????# #??????????????????????? | | ????????????????????????# #??????????????????????? | | ????????????????????????# #??????????????????????? | | ????????????????????????? ???????????????????????? | | ????????????????????????? ???????????????????????? | | ????????????????????????? ???????????????????????? | | ????????????????????????? ???????????????????????? | | ????????????????????????? ???????????????????????? | | ?????????????????????????#???????????????????????? | | ?????????????????????????????????????????????????? | | ?????????????????????????????????????????????????? | | ?????????????????????????????????????????????????? | | ?????????????????????????????????????????????????? | | ?????????????????????????????????????????????????? | | ?????????????????????????????????????????????????? | | ?????????????????????????????????????????????????? | | ?????????????????????????????????????????????????? | | ?????????????????????????????????????????????????? | | ?????????????????????????????????????????????????? | +----------------------------------------------------+ Best States ------------- Heat Dissipation 93 Coolant Potential 195 Energy Generation 28 Energy Capacity 340 Matter Stores 300 Matter Capacity 300 Sight Range 22 Robot Scan Range 16 Terrain Scan Density 10 Jamming Range 16 Power Amplification 30 Additional Mass Support 6 Armor Coverage 675 Utility Shielding 66 Evasion (%) 42 Targeting Accuracy 25 Target Analysis 8 Recoil Reduction 2 Kinecelleration 30 Offensive Hacking 30 Defensive Hacking 22 Relay Coupler Types 26 Relay Coupler Value 1 Item Schematics ----------------- Hacking Suite | -7/Factory | Scanalyzed Nanoactuators | -6/Factory | Hacked Lyr. Heavy Armor Plating | -6/Factory | Hacked Plasma Rifle | -4/Factory | Scanalyzed Arm. Huge Wheel | -4/Factory | Scanalyzed Robot Schematics ------------------ None Fabricated ------------ Hacking Suite | x1 | -7/Factory Lyr. Heavy Armor Plating | x1 | -6/Factory Lyr. Heavy Armor Plating | x1 | -6/Factory Lyr. Heavy Armor Plating | x1 | -5/Factory Plasma Rifle | x2 | -4/Factory Plasma Rifle | x2 | -4/Factory Alien Tech Used ----------------- None Achievements -------------- None Challenges ------------ None Game ------ Seed BiocellSignalSlayer Manual? 0 Play Time 01:31:31 Cumulative 315.1 hours Start 2021.08.29 @ 11:46:09 End 2021.08.29 @ 13:39:18 Sessions 1 Manual Loads 0 Difficulty Rogue Special Mode None Game No. 175 Rogue 175 Adventurer 0 Explorer 0 Win Type - Total 9 Types 6/0/1/2/0/0/0/0/0 Lore% 79 Gallery% 84 Achievement% 65 Wizard Run 0 Options --------- ASCII 0 Keyboard 0 Movement Numpad Keybinds 0 Fullscreen 1 Font 18/SmallcapsGlow Map View 76x50 Tactical HUD 1 Map Filters NONE Filters NONE Steam 1 RUN: 4cb890f3-8f7c-445c-9aef-d488829de1ea